Department family,Entity,Date,Expense type,Expense area,Supplier,Transaction number,Amount
Department of Health,Leicestershire Partnership NHS Trust,01/11/18,WIP Project Not in BS - Buildings excl Dwellings,Work in Progress,INTERSERVE CONSTRUCTION LTD,VEM54863,50834.65
Department of Health,Leicestershire Partnership NHS Trust,01/11/18,Med GP Trainees,Medical Trainees,ST.HELENS & KNOWSLEY NHS TRUST,16779525,60000.00
Department of Health,Leicestershire Partnership NHS Trust,02/11/18,Contract : Accomodation,Out of County Income - Inpateints Project,TURNING POINT,SI-TPS-00020312,48353.83
Department of Health,Leicestershire Partnership NHS Trust,05/11/18,Crs_NHS_LT1y -Resus Inventory Supplied.,Balance Sheet Collection,NHS SUPPLY CHAIN (ST1450),1019150846,38101.55
Department of Health,Leicestershire Partnership NHS Trust,06/11/18,Rent,"Syston Health Centre (New Building) (P127, LPT)",PHIP (5) LIMITED,LINV13080,37500.00
Department of Health,Leicestershire Partnership NHS Trust,06/11/18,Payroll Deductions -Home Electronics 28 Nov 18,Balance Sheet Collection,SME HCI LTD,129045,24241.10
Department of Health,Leicestershire Partnership NHS Trust,06/11/18,CHP Estates Management,Belgrave Health Centre (CHP),COMM HLTH PARTNERSHIPS LTD,0060087459,9041.24
Department of Health,Leicestershire Partnership NHS Trust,06/11/18,CHP Estates Management,Merlyn Vaz Centre (CHP),COMM HLTH PARTNERSHIPS LTD,0060087459,60957.31
Department of Health,Leicestershire Partnership NHS Trust,06/11/18,CHP Estates Management,Westcotes Health Centre (CHP),COMM HLTH PARTNERSHIPS LTD,0060087459,11563.20
Department of Health,Leicestershire Partnership NHS Trust,06/11/18,Unitary Payment,"The Agnes Unit (AKA Assessment and Treatment Centre) (P85, LPT)",ARDEN PARTNERSHIP (LEICESTER),SI0016,114431.10
Department of Health,Leicestershire Partnership NHS Trust,06/11/18,Computer EquipmentMaintenance,HIS Infrastructure,PHOENIX SOFTWARE LTD,OP/I829565,38236.08
Department of Health,Leicestershire Partnership NHS Trust,08/11/18,FP10'S,Adult City Central CMHT - St Peters,NHS BUS SERVICES AUTHORITY,1000057654,291.49
Department of Health,Leicestershire Partnership NHS Trust,08/11/18,FP10'S,Adult City Drugs,NHS BUS SERVICES AUTHORITY,1000057654,17586.37
Department of Health,Leicestershire Partnership NHS Trust,08/11/18,FP10'S,Adult County Drugs,NHS BUS SERVICES AUTHORITY,1000057654,28857.20
Department of Health,Leicestershire Partnership NHS Trust,08/11/18,FP10'S,CAMHS County Outpatients,NHS BUS SERVICES AUTHORITY,1000057654,15545.97
Department of Health,Leicestershire Partnership NHS Trust,08/11/18,FP10'S,Children Services Medical,NHS BUS SERVICES AUTHORITY,1000057654,5441.09
Department of Health,Leicestershire Partnership NHS Trust,08/11/18,FP10'S,Dementia Related Drugs and Investigations,NHS BUS SERVICES AUTHORITY,1000057654,7870.14
Department of Health,Leicestershire Partnership NHS Trust,08/11/18,FP10'S,Eating Disorders Outpatient Service,NHS BUS SERVICES AUTHORITY,1000057654,777.30
Department of Health,Leicestershire Partnership NHS Trust,08/11/18,FP10'S,Forensic Services - Community,NHS BUS SERVICES AUTHORITY,1000057654,97.16
Department of Health,Leicestershire Partnership NHS Trust,08/11/18,FP10'S,Leicestershire Psych-oncology Service,NHS BUS SERVICES AUTHORITY,1000057654,582.97
Department of Health,Leicestershire Partnership NHS Trust,08/11/18,FP10'S,PIER Team - Early Intervention Services,NHS BUS SERVICES AUTHORITY,1000057654,15837.45
Department of Health,Leicestershire Partnership NHS Trust,08/11/18,FP10'S,Pharmacy,NHS BUS SERVICES AUTHORITY,1000057654,874.46
Department of Health,Leicestershire Partnership NHS Trust,08/11/18,FP10'S,Snr Med Staff (Inc Med Reps),NHS BUS SERVICES AUTHORITY,1000057654,3400.68
Department of Health,Leicestershire Partnership NHS Trust,09/11/18,WIP Project Not in BS - Buildings excl Dwellings,Work in Progress,INTERSERVE CONSTRUCTION LTD,VEM54878,331909.22
Department of Health,Leicestershire Partnership NHS Trust,12/11/18,Crs_NHS_LT1y -Resus Inventory Supplied.,Balance Sheet Collection,NHS SUPPLY CHAIN (ST1450),1019155200,49345.53
Department of Health,Leicestershire Partnership NHS Trust,12/11/18,NURSE - BAND 2 - AGENCY,Beechwood Ward,HCL NURSING,MAN28743,1339.61
Department of Health,Leicestershire Partnership NHS Trust,12/11/18,NURSE - BAND 5 - AGENCY,Beechwood Ward,HCL NURSING,MAN28743,2104.82
Department of Health,Leicestershire Partnership NHS Trust,12/11/18,Nurse - Band 6 -Agency,City East CMHT MHSOP,HCL NURSING,MAN28743,836.93
Department of Health,Leicestershire Partnership NHS Trust,12/11/18,NURSE - BAND 5 - AGENCY,City ICS,HCL NURSING,MAN28743,6921.50
Department of Health,Leicestershire Partnership NHS Trust,12/11/18,NURSE - BAND 5 - AGENCY,City Planned Care - East,HCL NURSING,MAN28743,7161.04
Department of Health,Leicestershire Partnership NHS Trust,12/11/18,NURSE - BAND 5 - AGENCY,City Planned Care - West,HCL NURSING,MAN28743,2443.44
Department of Health,Leicestershire Partnership NHS Trust,12/11/18,Nurse - Band 6 -Agency,City West CMHT MHSOP,HCL NURSING,MAN28743,1906.81
Department of Health,Leicestershire Partnership NHS Trust,12/11/18,NURSE - BAND 2 - AGENCY,Clarendon Ward,HCL NURSING,MAN28743,1230.98
Department of Health,Leicestershire Partnership NHS Trust,12/11/18,NURSE - BAND 5 - AGENCY,Clarendon Ward,HCL NURSING,MAN28743,792.30
Department of Health,Leicestershire Partnership NHS Trust,12/11/18,NURSE - BAND 2 - AGENCY,Coalville Snibston Ward,HCL NURSING,MAN28743,176.94
Department of Health,Leicestershire Partnership NHS Trust,12/11/18,NURSE - BAND 5 - AGENCY,Coalville Snibston Ward,HCL NURSING,MAN28743,274.96
Department of Health,Leicestershire Partnership NHS Trust,12/11/18,NURSE - BAND 2 - AGENCY,Coalville Ward 2,HCL NURSING,MAN28743,1403.21
Department of Health,Leicestershire Partnership NHS Trust,12/11/18,NURSE - BAND 2 - AGENCY,Coleman Ward,HCL NURSING,MAN28743,497.54
Department of Health,Leicestershire Partnership NHS Trust,12/11/18,NURSE - BAND 5 - AGENCY,Dalgliesh Ward,HCL NURSING,MAN28743,2503.77
Department of Health,Leicestershire Partnership NHS Trust,12/11/18,NURSE - BAND 3 - AGENCY,East Planned Care - Blaby/Lutterworth,HCL NURSING,MAN28743,866.09
Department of Health,Leicestershire Partnership NHS Trust,12/11/18,NURSE - BAND 3 - AGENCY,"East Planned Care - Oadby,Wigston & Harborough",HCL NURSING,MAN28743,102.12
Department of Health,Leicestershire Partnership NHS Trust,12/11/18,NURSE - BAND 5 - AGENCY,"East Planned Care - Oadby,Wigston & Harborough",HCL NURSING,MAN28743,1347.93
Department of Health,Leicestershire Partnership NHS Trust,12/11/18,NURSE - BAND 5 - AGENCY,Evening Service,HCL NURSING,MAN28743,996.06
Department of Health,Leicestershire Partnership NHS Trust,12/11/18,NURSE - BAND 2 - AGENCY,Fielding Palmer Nursing,HCL NURSING,MAN28743,320.07
Department of Health,Leicestershire Partnership NHS Trust,12/11/18,NURSE - BAND 5 - AGENCY,Fielding Palmer Nursing,HCL NURSING,MAN28743,3317.28
Department of Health,Leicestershire Partnership NHS Trust,12/11/18,NURSE - BAND 2 - AGENCY,Gwendolen Ward,HCL NURSING,MAN28743,983.52
Department of Health,Leicestershire Partnership NHS Trust,12/11/18,NURSE - BAND 2 - AGENCY,H&B Comm Hosp East Ward,HCL NURSING,MAN28743,168.41
Department of Health,Leicestershire Partnership NHS Trust,12/11/18,NURSE - BAND 5 - AGENCY,H&B Comm Hosp East Ward,HCL NURSING,MAN28743,1402.71
Department of Health,Leicestershire Partnership NHS Trust,12/11/18,NURSE - BAND 2 - AGENCY,H&B Comm Hosp North Ward,HCL NURSING,MAN28743,2253.46
Department of Health,Leicestershire Partnership NHS Trust,12/11/18,NURSE - BAND 5 - AGENCY,H&B Comm Hosp North Ward,HCL NURSING,MAN28743,772.13
Department of Health,Leicestershire Partnership NHS Trust,12/11/18,NURSE - BAND 2 - AGENCY,Kirby Ward,HCL NURSING,MAN28743,576.17
Department of Health,Leicestershire Partnership NHS Trust,12/11/18,NURSE - BAND 5 - AGENCY,Kirby Ward,HCL NURSING,MAN28743,326.24
Department of Health,Leicestershire Partnership NHS Trust,12/11/18,NURSE - BAND 5 - AGENCY,Lough Swithland Ward,HCL NURSING,MAN28743,386.06
Department of Health,Leicestershire Partnership NHS Trust,12/11/18,Nurse - Band 6 -Agency,MHSOP Integrated Care Team,HCL NURSING,MAN28743,1464.63
Department of Health,Leicestershire Partnership NHS Trust,12/11/18,NURSE - BAND 5 - AGENCY,North East ICS,HCL NURSING,MAN28743,1816.94
Department of Health,Leicestershire Partnership NHS Trust,12/11/18,NURSE - BAND 5 - AGENCY,North West ICS,HCL NURSING,MAN28743,1080.98
Department of Health,Leicestershire Partnership NHS Trust,12/11/18,NURSE - BAND 2 - AGENCY,Rutland Ward Nursing,HCL NURSING,MAN28743,109.19
Department of Health,Leicestershire Partnership NHS Trust,12/11/18,NURSE - BAND 5 - AGENCY,South East ICS,HCL NURSING,MAN28743,3868.66
Department of Health,Leicestershire Partnership NHS Trust,12/11/18,NURSE - BAND 2 - AGENCY,St Lukes Stroke Ward,HCL NURSING,MAN28743,540.75
Department of Health,Leicestershire Partnership NHS Trust,12/11/18,NURSE - BAND 5 - AGENCY,St Lukes Stroke Ward,HCL NURSING,MAN28743,396.29
Department of Health,Leicestershire Partnership NHS Trust,12/11/18,NURSE - BAND 2 - AGENCY,St Lukes Ward 3,HCL NURSING,MAN28743,254.97
Department of Health,Leicestershire Partnership NHS Trust,12/11/18,NURSE - BAND 5 - AGENCY,St Lukes Ward 3,HCL NURSING,MAN28743,2832.20
Department of Health,Leicestershire Partnership NHS Trust,12/11/18,NURSE - BAND 3 - AGENCY,West Planned Care  - Charnwood Hub,HCL NURSING,MAN28743,71.09
Department of Health,Leicestershire Partnership NHS Trust,12/11/18,NURSE - BAND 5 - AGENCY,West Planned Care  - Charnwood Hub,HCL NURSING,MAN28743,955.14
Department of Health,Leicestershire Partnership NHS Trust,12/11/18,Network Costs - WAN Maint,HIS Infrastructure,VIRGIN MEDIA BUSINESS,262421-149,46565.94
Department of Health,Leicestershire Partnership NHS Trust,12/11/18,NURSE - BAND 2 - AGENCY,AGNES UNIT POD 1,HCL NURSING,MAN28771,116.19
Department of Health,Leicestershire Partnership NHS Trust,12/11/18,NURSE - BAND 5 - AGENCY,AGNES UNIT POD 2,HCL NURSING,MAN28771,287.92
Department of Health,Leicestershire Partnership NHS Trust,12/11/18,Nurse - Band 6 -Agency,Adult City East CMHT - Merlyn Vaz,HCL NURSING,MAN28771,1758.41
Department of Health,Leicestershire Partnership NHS Trust,12/11/18,Nurse - Band 6 -Agency,Adult County Charnwood CMHT - Loughborough Base,HCL NURSING,MAN28771,855.90
Department of Health,Leicestershire Partnership NHS Trust,12/11/18,Nurse - Band 6 -Agency,Adult County North West Leicestershire CMHT,HCL NURSING,MAN28771,641.93
Department of Health,Leicestershire Partnership NHS Trust,12/11/18,NURSE - BAND 5 - AGENCY,Ashby Ward (Bradgate Unit),HCL NURSING,MAN28771,339.96
Department of Health,Leicestershire Partnership NHS Trust,12/11/18,NURSE - BAND 2 - AGENCY,Aston Ward (Bradgate Unit),HCL NURSING,MAN28771,282.27
Department of Health,Leicestershire Partnership NHS Trust,12/11/18,NURSE - BAND 5 - AGENCY,Aston Ward (Bradgate Unit),HCL NURSING,MAN28771,1788.78
Department of Health,Leicestershire Partnership NHS Trust,12/11/18,NURSE - BAND 2 - AGENCY,Beaumont Ward - Bradgate Unit,HCL NURSING,MAN28771,308.28
Department of Health,Leicestershire Partnership NHS Trust,12/11/18,NURSE - BAND 5 - AGENCY,Beaumont Ward - Bradgate Unit,HCL NURSING,MAN28771,1661.09
Department of Health,Leicestershire Partnership NHS Trust,12/11/18,NURSE - BAND 2 - AGENCY,Belvoir Psychiatric Intensive Care Unit,HCL NURSING,MAN28771,2895.99
Department of Health,Leicestershire Partnership NHS Trust,12/11/18,NURSE - BAND 5 - AGENCY,Belvoir Psychiatric Intensive Care Unit,HCL NURSING,MAN28771,1418.40
Department of Health,Leicestershire Partnership NHS Trust,12/11/18,NURSE - BAND 2 - AGENCY,Bosworth Ward - Bradgate Unit,HCL NURSING,MAN28771,218.93
Department of Health,Leicestershire Partnership NHS Trust,12/11/18,Nurse - Band 6 -Agency,Crisis Resolution,HCL NURSING,MAN28771,6300.12
Department of Health,Leicestershire Partnership NHS Trust,12/11/18,NURSE - BAND 2 - AGENCY,Griffin Ward (HPC),HCL NURSING,MAN28771,94.95
Department of Health,Leicestershire Partnership NHS Trust,12/11/18,NURSE - BAND 5 - AGENCY,Griffin Ward (HPC),HCL NURSING,MAN28771,1867.85
Department of Health,Leicestershire Partnership NHS Trust,12/11/18,NURSE - BAND 2 - AGENCY,Heather Ward,HCL NURSING,MAN28771,1027.90
Department of Health,Leicestershire Partnership NHS Trust,12/11/18,NURSE - BAND 5 - AGENCY,Heather Ward,HCL NURSING,MAN28771,2861.58
Department of Health,Leicestershire Partnership NHS Trust,12/11/18,Nurse - Band 6 -Agency,Mental Health Triage Team,HCL NURSING,MAN28771,2255.17
Department of Health,Leicestershire Partnership NHS Trust,12/11/18,NURSE - BAND 2 - AGENCY,Mill Lodge,HCL NURSING,MAN28771,1287.43
Department of Health,Leicestershire Partnership NHS Trust,12/11/18,NURSE - BAND 5 - AGENCY,Mill Lodge,HCL NURSING,MAN28771,1921.70
Department of Health,Leicestershire Partnership NHS Trust,12/11/18,NURSE - BAND 2 - AGENCY,Phoenix Ward (HPC),HCL NURSING,MAN28771,109.19
Department of Health,Leicestershire Partnership NHS Trust,12/11/18,NURSE - BAND 5 - AGENCY,Phoenix Ward (HPC),HCL NURSING,MAN28771,437.03
Department of Health,Leicestershire Partnership NHS Trust,12/11/18,NURSE - BAND 2 - AGENCY,Place Of Safety Assessment Unit,HCL NURSING,MAN28771,234.61
Department of Health,Leicestershire Partnership NHS Trust,12/11/18,NURSE - BAND 2 - AGENCY,Watermead Ward (Bradgate Unit),HCL NURSING,MAN28771,375.61
Department of Health,Leicestershire Partnership NHS Trust,12/11/18,NURSE - BAND 5 - AGENCY,Watermead Ward (Bradgate Unit),HCL NURSING,MAN28771,2096.55
Department of Health,Leicestershire Partnership NHS Trust,12/11/18,Nurse - Band 6 -Agency,Adult City East CMHT - Merlyn Vaz,HCL NURSING,MAN28797,1760.29
Department of Health,Leicestershire Partnership NHS Trust,12/11/18,NURSE - BAND 5 - AGENCY,Agnes Unit Management,HCL NURSING,MAN28797,942.64
Department of Health,Leicestershire Partnership NHS Trust,12/11/18,NURSE - BAND 2 - AGENCY,Ashby Ward (Bradgate Unit),HCL NURSING,MAN28797,204.82
Department of Health,Leicestershire Partnership NHS Trust,12/11/18,NURSE - BAND 2 - AGENCY,Aston Ward (Bradgate Unit),HCL NURSING,MAN28797,278.47
Department of Health,Leicestershire Partnership NHS Trust,12/11/18,NURSE - BAND 5 - AGENCY,Aston Ward (Bradgate Unit),HCL NURSING,MAN28797,3112.53
Department of Health,Leicestershire Partnership NHS Trust,12/11/18,NURSE - BAND 2 - AGENCY,Beaumont Ward - Bradgate Unit,HCL NURSING,MAN28797,408.97
Department of Health,Leicestershire Partnership NHS Trust,12/11/18,NURSE - BAND 2 - AGENCY,Belvoir Psychiatric Intensive Care Unit,HCL NURSING,MAN28797,2738.71
Department of Health,Leicestershire Partnership NHS Trust,12/11/18,NURSE - BAND 5 - AGENCY,Belvoir Psychiatric Intensive Care Unit,HCL NURSING,MAN28797,1722.29
Department of Health,Leicestershire Partnership NHS Trust,12/11/18,NURSE - BAND 5 - AGENCY,Bosworth Ward - Bradgate Unit,HCL NURSING,MAN28797,606.70
Department of Health,Leicestershire Partnership NHS Trust,12/11/18,Nurse - Band 6 -Agency,Crisis Resolution,HCL NURSING,MAN28797,3126.07
Department of Health,Leicestershire Partnership NHS Trust,12/11/18,Nurse - Band 6 -Agency,Deliberate Self Harm,HCL NURSING,MAN28797,1019.00
Department of Health,Leicestershire Partnership NHS Trust,12/11/18,NURSE - BAND 5 - AGENCY,Griffin Ward (HPC),HCL NURSING,MAN28797,1511.75
Department of Health,Leicestershire Partnership NHS Trust,12/11/18,NURSE - BAND 2 - AGENCY,Heather Ward,HCL NURSING,MAN28797,1700.23
Department of Health,Leicestershire Partnership NHS Trust,12/11/18,NURSE - BAND 5 - AGENCY,Heather Ward,HCL NURSING,MAN28797,2989.76
Department of Health,Leicestershire Partnership NHS Trust,12/11/18,Nurse - Band 6 -Agency,Mental Health Triage Team,HCL NURSING,MAN28797,1866.80
Department of Health,Leicestershire Partnership NHS Trust,12/11/18,NURSE - BAND 2 - AGENCY,Mill Lodge,HCL NURSING,MAN28797,407.76
Department of Health,Leicestershire Partnership NHS Trust,12/11/18,NURSE - BAND 5 - AGENCY,Mill Lodge,HCL NURSING,MAN28797,1324.25
Department of Health,Leicestershire Partnership NHS Trust,12/11/18,NURSE - BAND 2 - AGENCY,Phoenix Ward (HPC),HCL NURSING,MAN28797,348.62
Department of Health,Leicestershire Partnership NHS Trust,12/11/18,NURSE - BAND 2 - AGENCY,Thornton Ward - Bradgate Unit,HCL NURSING,MAN28797,201.67
Department of Health,Leicestershire Partnership NHS Trust,12/11/18,NURSE - BAND 5 - AGENCY,Watermead Ward (Bradgate Unit),HCL NURSING,MAN28797,606.70
Department of Health,Leicestershire Partnership NHS Trust,14/11/18,Furniture & Fittings,Mill Lodge,PREMIERE HEALTHCARE LTD,SI-00006856,25246.17
Department of Health,Leicestershire Partnership NHS Trust,14/11/18,Computer Maintenance,Finance Department,SOFTWARE BOX LTD,INV99636,30347.99
Department of Health,Leicestershire Partnership NHS Trust,14/11/18,Med GP Trainees,Medical Trainees,ST.HELENS & KNOWSLEY NHS TRUST,16779714,60000.00
Department of Health,Leicestershire Partnership NHS Trust,14/11/18,NURSE - BAND 2 - AGENCY,Beechwood Ward,HCL NURSING,MAN28772,1512.18
Department of Health,Leicestershire Partnership NHS Trust,14/11/18,NURSE - BAND 5 - AGENCY,Beechwood Ward,HCL NURSING,MAN28772,557.03
Department of Health,Leicestershire Partnership NHS Trust,14/11/18,Nurse - Band 6 -Agency,City East CMHT MHSOP,HCL NURSING,MAN28772,836.93
Department of Health,Leicestershire Partnership NHS Trust,14/11/18,NURSE - BAND 5 - AGENCY,City ICS,HCL NURSING,MAN28772,2749.43
Department of Health,Leicestershire Partnership NHS Trust,14/11/18,NURSE - BAND 5 - AGENCY,City Planned Care - East,HCL NURSING,MAN28772,4699.69
Department of Health,Leicestershire Partnership NHS Trust,14/11/18,NURSE - BAND 5 - AGENCY,City Planned Care - West,HCL NURSING,MAN28772,2800.35
Department of Health,Leicestershire Partnership NHS Trust,14/11/18,Nurse - Band 6 -Agency,City West CMHT MHSOP,HCL NURSING,MAN28772,1069.88
Department of Health,Leicestershire Partnership NHS Trust,14/11/18,NURSE - BAND 2 - AGENCY,Clarendon Ward,HCL NURSING,MAN28772,670.43
Department of Health,Leicestershire Partnership NHS Trust,14/11/18,NURSE - BAND 5 - AGENCY,Clarendon Ward,HCL NURSING,MAN28772,1235.26
Department of Health,Leicestershire Partnership NHS Trust,14/11/18,NURSE - BAND 5 - AGENCY,Coalville Snibston Ward,HCL NURSING,MAN28772,832.68
Department of Health,Leicestershire Partnership NHS Trust,14/11/18,NURSE - BAND 2 - AGENCY,Coalville Ward 2,HCL NURSING,MAN28772,435.53
Department of Health,Leicestershire Partnership NHS Trust,14/11/18,NURSE - BAND 5 - AGENCY,Coalville Ward 2,HCL NURSING,MAN28772,498.66
Department of Health,Leicestershire Partnership NHS Trust,14/11/18,NURSE - BAND 2 - AGENCY,Coleman Ward,HCL NURSING,MAN28772,113.85
Department of Health,Leicestershire Partnership NHS Trust,14/11/18,NURSE - BAND 5 - AGENCY,Coleman Ward,HCL NURSING,MAN28772,302.58
Department of Health,Leicestershire Partnership NHS Trust,14/11/18,NURSE - BAND 5 - AGENCY,Dalgliesh Ward,HCL NURSING,MAN28772,715.88
Department of Health,Leicestershire Partnership NHS Trust,14/11/18,NURSE - BAND 3 - AGENCY,East Planned Care - Blaby/Lutterworth,HCL NURSING,MAN28772,928.19
Department of Health,Leicestershire Partnership NHS Trust,14/11/18,NURSE - BAND 5 - AGENCY,"East Planned Care - Melton,Syston,Rutland",HCL NURSING,MAN28772,432.70
Department of Health,Leicestershire Partnership NHS Trust,14/11/18,NURSE - BAND 5 - AGENCY,"East Planned Care - Oadby,Wigston & Harborough",HCL NURSING,MAN28772,313.66
Department of Health,Leicestershire Partnership NHS Trust,14/11/18,NURSE - BAND 5 - AGENCY,Evening Service,HCL NURSING,MAN28772,1736.74
Department of Health,Leicestershire Partnership NHS Trust,14/11/18,NURSE - BAND 5 - AGENCY,Fielding Palmer Nursing,HCL NURSING,MAN28772,430.84
Department of Health,Leicestershire Partnership NHS Trust,14/11/18,NURSE - BAND 2 - AGENCY,Gwendolen Ward,HCL NURSING,MAN28772,367.28
Department of Health,Leicestershire Partnership NHS Trust,14/11/18,NURSE - BAND 5 - AGENCY,Gwendolen Ward,HCL NURSING,MAN28772,308.21
Department of Health,Leicestershire Partnership NHS Trust,14/11/18,NURSE - BAND 5 - AGENCY,H&B Comm Hosp East Ward,HCL NURSING,MAN28772,1385.97
Department of Health,Leicestershire Partnership NHS Trust,14/11/18,NURSE - BAND 2 - AGENCY,H&B Comm Hosp North Ward,HCL NURSING,MAN28772,626.22
Department of Health,Leicestershire Partnership NHS Trust,14/11/18,NURSE - BAND 5 - AGENCY,H&B Comm Hosp North Ward,HCL NURSING,MAN28772,807.91
Department of Health,Leicestershire Partnership NHS Trust,14/11/18,NURSE - BAND 5 - AGENCY,Kirby Ward,HCL NURSING,MAN28772,302.58
Department of Health,Leicestershire Partnership NHS Trust,14/11/18,NURSE - BAND 2 - AGENCY,Lough Swithland Ward,HCL NURSING,MAN28772,905.38
Department of Health,Leicestershire Partnership NHS Trust,14/11/18,Nurse - Band 6 -Agency,MHSOP Integrated Care Team,HCL NURSING,MAN28772,1046.16
Department of Health,Leicestershire Partnership NHS Trust,14/11/18,NURSE - BAND 5 - AGENCY,North East ICS,HCL NURSING,MAN28772,1372.51
Department of Health,Leicestershire Partnership NHS Trust,14/11/18,NURSE - BAND 5 - AGENCY,North West ICS,HCL NURSING,MAN28772,757.14
Department of Health,Leicestershire Partnership NHS Trust,14/11/18,NURSE - BAND 2 - AGENCY,Rutland Ward Nursing,HCL NURSING,MAN28772,168.41
Department of Health,Leicestershire Partnership NHS Trust,14/11/18,NURSE - BAND 5 - AGENCY,South East ICS,HCL NURSING,MAN28772,3009.50
Department of Health,Leicestershire Partnership NHS Trust,14/11/18,NURSE - BAND 2 - AGENCY,St Lukes Stroke Ward,HCL NURSING,MAN28772,588.33
Department of Health,Leicestershire Partnership NHS Trust,14/11/18,NURSE - BAND 5 - AGENCY,St Lukes Stroke Ward,HCL NURSING,MAN28772,455.85
Department of Health,Leicestershire Partnership NHS Trust,14/11/18,NURSE - BAND 5 - AGENCY,St Lukes Ward 3,HCL NURSING,MAN28772,1941.87
Department of Health,Leicestershire Partnership NHS Trust,14/11/18,NURSE - BAND 2 - AGENCY,Welford Ward,HCL NURSING,MAN28772,377.65
Department of Health,Leicestershire Partnership NHS Trust,14/11/18,NURSE - BAND 5 - AGENCY,Welford Ward,HCL NURSING,MAN28772,302.58
Department of Health,Leicestershire Partnership NHS Trust,14/11/18,NURSE - BAND 3 - AGENCY,West Planned Care  - Charnwood Hub,HCL NURSING,MAN28772,629.61
Department of Health,Leicestershire Partnership NHS Trust,14/11/18,NURSE - BAND 5 - AGENCY,West Planned Care  - Charnwood Hub,HCL NURSING,MAN28772,2520.71
Department of Health,Leicestershire Partnership NHS Trust,14/11/18,Computer License  Fees,Information Services,SERVELEC HEALTHCARE LTD,0070015335,23333.33
Department of Health,Leicestershire Partnership NHS Trust,15/11/18,Payroll Deductions - Kiddi Vouchers,Balance Sheet Collection,WIDER PLAN LTD,4396450,43434.17
Department of Health,Leicestershire Partnership NHS Trust,19/11/18,Crs_NHS_LT1y -Resus Inventory Supplied.,Balance Sheet Collection,NHS SUPPLY CHAIN (ST1450),1019160644,50321.17
Department of Health,Leicestershire Partnership NHS Trust,19/11/18,Computer Hardware,HIS External Recharge,DELL COMPUTERS,7402482449,37800.00
Department of Health,Leicestershire Partnership NHS Trust,19/11/18,NURSE - BAND 5 - AGENCY,AGNES UNIT POD 1,HCL NURSING,MAN28842,346.52
Department of Health,Leicestershire Partnership NHS Trust,19/11/18,NURSE - BAND 2 - AGENCY,Acacia (Willows),HCL NURSING,MAN28842,247.22
Department of Health,Leicestershire Partnership NHS Trust,19/11/18,Nurse - Band 6 -Agency,Adult City East CMHT - Merlyn Vaz,HCL NURSING,MAN28842,1753.92
Department of Health,Leicestershire Partnership NHS Trust,19/11/18,Nurse - Band 6 -Agency,Adult County Charnwood CMHT - Loughborough Base,HCL NURSING,MAN28842,1069.88
Department of Health,Leicestershire Partnership NHS Trust,19/11/18,NURSE - BAND 5 - AGENCY,Ashby Ward (Bradgate Unit),HCL NURSING,MAN28842,370.38
Department of Health,Leicestershire Partnership NHS Trust,19/11/18,NURSE - BAND 2 - AGENCY,Aston Ward (Bradgate Unit),HCL NURSING,MAN28842,374.11
Department of Health,Leicestershire Partnership NHS Trust,19/11/18,NURSE - BAND 5 - AGENCY,Aston Ward (Bradgate Unit),HCL NURSING,MAN28842,1999.17
Department of Health,Leicestershire Partnership NHS Trust,19/11/18,NURSE - BAND 2 - AGENCY,Beaumont Ward - Bradgate Unit,HCL NURSING,MAN28842,117.07
Department of Health,Leicestershire Partnership NHS Trust,19/11/18,NURSE - BAND 5 - AGENCY,Beaumont Ward - Bradgate Unit,HCL NURSING,MAN28842,1216.06
Department of Health,Leicestershire Partnership NHS Trust,19/11/18,NURSE - BAND 2 - AGENCY,Belvoir Psychiatric Intensive Care Unit,HCL NURSING,MAN28842,2179.17
Department of Health,Leicestershire Partnership NHS Trust,19/11/18,NURSE - BAND 5 - AGENCY,Belvoir Psychiatric Intensive Care Unit,HCL NURSING,MAN28842,1369.96
Department of Health,Leicestershire Partnership NHS Trust,19/11/18,Nurse - Band 6 -Agency,Crisis Resolution,HCL NURSING,MAN28842,251.08
Department of Health,Leicestershire Partnership NHS Trust,19/11/18,Nurse - Band 6 -Agency,Deliberate Self Harm,HCL NURSING,MAN28842,348.72
Department of Health,Leicestershire Partnership NHS Trust,19/11/18,NURSE - BAND 2 - AGENCY,Griffin Ward (HPC),HCL NURSING,MAN28842,180.21
Department of Health,Leicestershire Partnership NHS Trust,19/11/18,NURSE - BAND 5 - AGENCY,Griffin Ward (HPC),HCL NURSING,MAN28842,2086.39
Department of Health,Leicestershire Partnership NHS Trust,19/11/18,NURSE - BAND 2 - AGENCY,Heather Ward,HCL NURSING,MAN28842,673.09
Department of Health,Leicestershire Partnership NHS Trust,19/11/18,NURSE - BAND 5 - AGENCY,Heather Ward,HCL NURSING,MAN28842,1995.79
Department of Health,Leicestershire Partnership NHS Trust,19/11/18,Nurse - Band 6 -Agency,Mental Health Triage Team,HCL NURSING,MAN28842,1522.93
Department of Health,Leicestershire Partnership NHS Trust,19/11/18,NURSE - BAND 5 - AGENCY,Mill Lodge,HCL NURSING,MAN28842,1548.11
Department of Health,Leicestershire Partnership NHS Trust,19/11/18,NURSE - BAND 2 - AGENCY,Phoenix Ward (HPC),HCL NURSING,MAN28842,450.68
Department of Health,Leicestershire Partnership NHS Trust,19/11/18,NURSE - BAND 5 - AGENCY,Phoenix Ward (HPC),HCL NURSING,MAN28842,190.01
Department of Health,Leicestershire Partnership NHS Trust,19/11/18,NURSE - BAND 2 - AGENCY,Place Of Safety Assessment Unit,HCL NURSING,MAN28842,186.39
Department of Health,Leicestershire Partnership NHS Trust,19/11/18,NURSE - BAND 2 - AGENCY,Thornton Ward - Bradgate Unit,HCL NURSING,MAN28842,883.13
Department of Health,Leicestershire Partnership NHS Trust,19/11/18,NURSE - BAND 5 - AGENCY,Thornton Ward - Bradgate Unit,HCL NURSING,MAN28842,533.48
Department of Health,Leicestershire Partnership NHS Trust,19/11/18,NURSE - BAND 2 - AGENCY,Watermead Ward (Bradgate Unit),HCL NURSING,MAN28842,182.77
Department of Health,Leicestershire Partnership NHS Trust,19/11/18,NURSE - BAND 5 - AGENCY,Watermead Ward (Bradgate Unit),HCL NURSING,MAN28842,637.12
Department of Health,Leicestershire Partnership NHS Trust,20/11/18,WIP Project Not in BS - Information Technology,Work in Progress,DELL COMPUTERS,7402484098,28911.60
Department of Health,Leicestershire Partnership NHS Trust,21/11/18,Computer Hardware,HIS External Recharge,DELL COMPUTERS,7402483129,30600.00
Department of Health,Leicestershire Partnership NHS Trust,22/11/18,External Data Processing / Storage,Records & information Governance,C & V DATA MANAGEMENT SRV LTD,0065325,30936.34
Department of Health,Leicestershire Partnership NHS Trust,23/11/18,Drugs,Dementia Related Drugs and Investigations,LLOYDS PHARMACY,76741,33776.09
Department of Health,Leicestershire Partnership NHS Trust,26/11/18,Insurance Costs,Chief Executives Office,NHS LITIGATION AUTHORITY,SICX/00135664,85763.50
Department of Health,Leicestershire Partnership NHS Trust,26/11/18,Crs_NHS_LT1y -Resus Inventory Supplied.,Balance Sheet Collection,NHS SUPPLY CHAIN (ST1450),1019168085,39447.25
Department of Health,Leicestershire Partnership NHS Trust,26/11/18,Pathology Service,CHS Inpatient Management,UHL NHS TRUST (RWE),L0218177,5681.66
Department of Health,Leicestershire Partnership NHS Trust,26/11/18,Pathology Service,Children Services Medical,UHL NHS TRUST (RWE),L0218177,9307.56
Department of Health,Leicestershire Partnership NHS Trust,26/11/18,Pathology Service,UHL Expenditure Contract,UHL NHS TRUST (RWE),L0218177,10292.29
Department of Health,Leicestershire Partnership NHS Trust,26/11/18,Cytogenetic Testing,Children Services Medical,UHL NHS TRUST (RWE),L0218173,29751.46
Department of Health,Leicestershire Partnership NHS Trust,26/11/18,Rent,"OSL House (P54, LPT)",CABOT TRUSTEES LTD,051,38990.59
Department of Health,Leicestershire Partnership NHS Trust,26/11/18,NURSE - BAND 2 - AGENCY,AGNES UNIT POD 1,HCL NURSING,MAN28896,313.21
Department of Health,Leicestershire Partnership NHS Trust,26/11/18,NURSE - BAND 5 - AGENCY,AGNES UNIT POD 1,HCL NURSING,MAN28896,308.20
Department of Health,Leicestershire Partnership NHS Trust,26/11/18,NURSE - BAND 2 - AGENCY,AGNES UNIT POD 2,HCL NURSING,MAN28896,261.40
Department of Health,Leicestershire Partnership NHS Trust,26/11/18,Nurse - Band 6 -Agency,Adult City East CMHT - Merlyn Vaz,HCL NURSING,MAN28896,1757.57
Department of Health,Leicestershire Partnership NHS Trust,26/11/18,Nurse - Band 6 -Agency,Adult County Charnwood CMHT - Loughborough Base,HCL NURSING,MAN28896,1069.88
Department of Health,Leicestershire Partnership NHS Trust,26/11/18,NURSE - BAND 2 - AGENCY,Aston Ward (Bradgate Unit),HCL NURSING,MAN28896,168.47
Department of Health,Leicestershire Partnership NHS Trust,26/11/18,NURSE - BAND 5 - AGENCY,Aston Ward (Bradgate Unit),HCL NURSING,MAN28896,1649.07
Department of Health,Leicestershire Partnership NHS Trust,26/11/18,NURSE - BAND 2 - AGENCY,Beaumont Ward - Bradgate Unit,HCL NURSING,MAN28896,450.20
Department of Health,Leicestershire Partnership NHS Trust,26/11/18,NURSE - BAND 5 - AGENCY,Beaumont Ward - Bradgate Unit,HCL NURSING,MAN28896,1093.63
Department of Health,Leicestershire Partnership NHS Trust,26/11/18,NURSE - BAND 2 - AGENCY,Belvoir Psychiatric Intensive Care Unit,HCL NURSING,MAN28896,2001.90
Department of Health,Leicestershire Partnership NHS Trust,26/11/18,NURSE - BAND 5 - AGENCY,Belvoir Psychiatric Intensive Care Unit,HCL NURSING,MAN28896,1722.29
Department of Health,Leicestershire Partnership NHS Trust,26/11/18,NURSE - BAND 2 - AGENCY,Bosworth Ward - Bradgate Unit,HCL NURSING,MAN28896,211.93
Department of Health,Leicestershire Partnership NHS Trust,26/11/18,NURSE - BAND 5 - AGENCY,Bosworth Ward - Bradgate Unit,HCL NURSING,MAN28896,302.75
Department of Health,Leicestershire Partnership NHS Trust,26/11/18,Nurse - Band 6 -Agency,Crisis Resolution,HCL NURSING,MAN28896,3430.81
Department of Health,Leicestershire Partnership NHS Trust,26/11/18,Nurse - Band 6 -Agency,Deliberate Self Harm,HCL NURSING,MAN28896,693.89
Department of Health,Leicestershire Partnership NHS Trust,26/11/18,NURSE - BAND 5 - AGENCY,Griffin Ward (HPC),HCL NURSING,MAN28896,2402.56
Department of Health,Leicestershire Partnership NHS Trust,26/11/18,NURSE - BAND 2 - AGENCY,Heather Ward,HCL NURSING,MAN28896,393.94
Department of Health,Leicestershire Partnership NHS Trust,26/11/18,NURSE - BAND 5 - AGENCY,Heather Ward,HCL NURSING,MAN28896,1386.86
Department of Health,Leicestershire Partnership NHS Trust,26/11/18,Nurse - Band 6 -Agency,Mental Health Triage Team,HCL NURSING,MAN28896,1522.93
Department of Health,Leicestershire Partnership NHS Trust,26/11/18,NURSE - BAND 2 - AGENCY,Mill Lodge,HCL NURSING,MAN28896,882.64
Department of Health,Leicestershire Partnership NHS Trust,26/11/18,NURSE - BAND 5 - AGENCY,Mill Lodge,HCL NURSING,MAN28896,1548.11
Department of Health,Leicestershire Partnership NHS Trust,26/11/18,NURSE - BAND 2 - AGENCY,Thornton Ward - Bradgate Unit,HCL NURSING,MAN28896,557.39
Department of Health,Leicestershire Partnership NHS Trust,26/11/18,NURSE - BAND 5 - AGENCY,Thornton Ward - Bradgate Unit,HCL NURSING,MAN28896,329.81
Department of Health,Leicestershire Partnership NHS Trust,26/11/18,NURSE - BAND 2 - AGENCY,Watermead Ward (Bradgate Unit),HCL NURSING,MAN28896,842.06
Department of Health,Leicestershire Partnership NHS Trust,26/11/18,NURSE - BAND 5 - AGENCY,Watermead Ward (Bradgate Unit),HCL NURSING,MAN28896,329.81
Department of Health,Leicestershire Partnership NHS Trust,27/11/18,NURSE - BAND 2 - AGENCY,Beechwood Ward,HCL NURSING,MAN28798,729.45
Department of Health,Leicestershire Partnership NHS Trust,27/11/18,NURSE - BAND 5 - AGENCY,Beechwood Ward,HCL NURSING,MAN28798,428.96
Department of Health,Leicestershire Partnership NHS Trust,27/11/18,Nurse - Band 6 -Agency,City East CMHT MHSOP,HCL NURSING,MAN28798,836.93
Department of Health,Leicestershire Partnership NHS Trust,27/11/18,NURSE - BAND 5 - AGENCY,City ICS,HCL NURSING,MAN28798,2698.43
Department of Health,Leicestershire Partnership NHS Trust,27/11/18,NURSE - BAND 5 - AGENCY,City Planned Care - East,HCL NURSING,MAN28798,5482.94
Department of Health,Leicestershire Partnership NHS Trust,27/11/18,NURSE - BAND 5 - AGENCY,City Planned Care - West,HCL NURSING,MAN28798,4939.14
Department of Health,Leicestershire Partnership NHS Trust,27/11/18,Nurse - Band 6 -Agency,City West CMHT MHSOP,HCL NURSING,MAN28798,1069.88
Department of Health,Leicestershire Partnership NHS Trust,27/11/18,NURSE - BAND 2 - AGENCY,Clarendon Ward,HCL NURSING,MAN28798,223.60
Department of Health,Leicestershire Partnership NHS Trust,27/11/18,NURSE - BAND 5 - AGENCY,Clarendon Ward,HCL NURSING,MAN28798,1558.14
Department of Health,Leicestershire Partnership NHS Trust,27/11/18,NURSE - BAND 5 - AGENCY,Coalville Snibston Ward,HCL NURSING,MAN28798,316.27
Department of Health,Leicestershire Partnership NHS Trust,27/11/18,NURSE - BAND 2 - AGENCY,Coalville Ward 2,HCL NURSING,MAN28798,643.37
Department of Health,Leicestershire Partnership NHS Trust,27/11/18,NURSE - BAND 5 - AGENCY,Dalgliesh Ward,HCL NURSING,MAN28798,2345.19
Department of Health,Leicestershire Partnership NHS Trust,27/11/18,NURSE - BAND 3 - AGENCY,East Planned Care - Blaby/Lutterworth,HCL NURSING,MAN28798,882.69
Department of Health,Leicestershire Partnership NHS Trust,27/11/18,NURSE - BAND 5 - AGENCY,"East Planned Care - Oadby,Wigston & Harborough",HCL NURSING,MAN28798,560.09
Department of Health,Leicestershire Partnership NHS Trust,27/11/18,NURSE - BAND 5 - AGENCY,Evening Service,HCL NURSING,MAN28798,158.41
Department of Health,Leicestershire Partnership NHS Trust,27/11/18,NURSE - BAND 2 - AGENCY,Fielding Palmer Nursing,HCL NURSING,MAN28798,109.18
Department of Health,Leicestershire Partnership NHS Trust,27/11/18,NURSE - BAND 2 - AGENCY,Gwendolen Ward,HCL NURSING,MAN28798,624.35
Department of Health,Leicestershire Partnership NHS Trust,27/11/18,NURSE - BAND 5 - AGENCY,Gwendolen Ward,HCL NURSING,MAN28798,628.82
Department of Health,Leicestershire Partnership NHS Trust,27/11/18,NURSE - BAND 5 - AGENCY,H&B Comm Hosp East Ward,HCL NURSING,MAN28798,1412.17
Department of Health,Leicestershire Partnership NHS Trust,27/11/18,NURSE - BAND 2 - AGENCY,H&B Comm Hosp North Ward,HCL NURSING,MAN28798,211.93
Department of Health,Leicestershire Partnership NHS Trust,27/11/18,NURSE - BAND 5 - AGENCY,H&B Comm Hosp North Ward,HCL NURSING,MAN28798,772.13
Department of Health,Leicestershire Partnership NHS Trust,27/11/18,NURSE - BAND 2 - AGENCY,Kirby Ward,HCL NURSING,MAN28798,818.73
Department of Health,Leicestershire Partnership NHS Trust,27/11/18,NURSE - BAND 5 - AGENCY,Kirby Ward,HCL NURSING,MAN28798,1839.13
Department of Health,Leicestershire Partnership NHS Trust,27/11/18,NURSE - BAND 2 - AGENCY,Lough Swithland Ward,HCL NURSING,MAN28798,211.93
Department of Health,Leicestershire Partnership NHS Trust,27/11/18,NURSE - BAND 5 - AGENCY,Lough Swithland Ward,HCL NURSING,MAN28798,1996.44
Department of Health,Leicestershire Partnership NHS Trust,27/11/18,Nurse - Band 6 -Agency,MHSOP Integrated Care Team,HCL NURSING,MAN28798,1158.44
Department of Health,Leicestershire Partnership NHS Trust,27/11/18,NURSE - BAND 5 - AGENCY,North East ICS,HCL NURSING,MAN28798,1074.33
Department of Health,Leicestershire Partnership NHS Trust,27/11/18,NURSE - BAND 5 - AGENCY,North West ICS,HCL NURSING,MAN28798,1832.37
Department of Health,Leicestershire Partnership NHS Trust,27/11/18,NURSE - BAND 2 - AGENCY,Rutland Ward Nursing,HCL NURSING,MAN28798,978.12
Department of Health,Leicestershire Partnership NHS Trust,27/11/18,NURSE - BAND 5 - AGENCY,South East ICS,HCL NURSING,MAN28798,2724.74
Department of Health,Leicestershire Partnership NHS Trust,27/11/18,NURSE - BAND 2 - AGENCY,St Lukes Stroke Ward,HCL NURSING,MAN28798,239.57
Department of Health,Leicestershire Partnership NHS Trust,27/11/18,NURSE - BAND 5 - AGENCY,St Lukes Stroke Ward,HCL NURSING,MAN28798,406.23
Department of Health,Leicestershire Partnership NHS Trust,27/11/18,NURSE - BAND 5 - AGENCY,St Lukes Ward 3,HCL NURSING,MAN28798,1172.76
Department of Health,Leicestershire Partnership NHS Trust,27/11/18,NURSE - BAND 3 - AGENCY,West Planned Care  - Charnwood Hub,HCL NURSING,MAN28798,351.48
Department of Health,Leicestershire Partnership NHS Trust,27/11/18,NURSE - BAND 5 - AGENCY,West Planned Care  - Charnwood Hub,HCL NURSING,MAN28798,2528.56
Department of Health,Leicestershire Partnership NHS Trust,27/11/18,NURSE - BAND 2 - AGENCY,Beechwood Ward,HCL NURSING,MAN28843,435.53
Department of Health,Leicestershire Partnership NHS Trust,27/11/18,NURSE - BAND 5 - AGENCY,Beechwood Ward,HCL NURSING,MAN28843,1157.70
Department of Health,Leicestershire Partnership NHS Trust,27/11/18,NURSE - BAND 5 - AGENCY,City ICS,HCL NURSING,MAN28843,1685.40
Department of Health,Leicestershire Partnership NHS Trust,27/11/18,NURSE - BAND 5 - AGENCY,City Planned Care - East,HCL NURSING,MAN28843,6348.95
Department of Health,Leicestershire Partnership NHS Trust,27/11/18,NURSE - BAND 5 - AGENCY,City Planned Care - West,HCL NURSING,MAN28843,3328.61
Department of Health,Leicestershire Partnership NHS Trust,27/11/18,Nurse - Band 6 -Agency,City West CMHT MHSOP,HCL NURSING,MAN28843,1069.88
Department of Health,Leicestershire Partnership NHS Trust,27/11/18,NURSE - BAND 5 - AGENCY,Clarendon Ward,HCL NURSING,MAN28843,2879.73
Department of Health,Leicestershire Partnership NHS Trust,27/11/18,NURSE - BAND 2 - AGENCY,Coalville Snibston Ward,HCL NURSING,MAN28843,176.94
Department of Health,Leicestershire Partnership NHS Trust,27/11/18,NURSE - BAND 5 - AGENCY,Coalville Snibston Ward,HCL NURSING,MAN28843,792.30
Department of Health,Leicestershire Partnership NHS Trust,27/11/18,NURSE - BAND 2 - AGENCY,Coalville Ward 2,HCL NURSING,MAN28843,1174.45
Department of Health,Leicestershire Partnership NHS Trust,27/11/18,NURSE - BAND 5 - AGENCY,Coalville Ward 2,HCL NURSING,MAN28843,386.06
Department of Health,Leicestershire Partnership NHS Trust,27/11/18,NURSE - BAND 2 - AGENCY,Coleman Ward,HCL NURSING,MAN28843,326.98
Department of Health,Leicestershire Partnership NHS Trust,27/11/18,NURSE - BAND 5 - AGENCY,Dalgliesh Ward,HCL NURSING,MAN28843,1919.53
Department of Health,Leicestershire Partnership NHS Trust,27/11/18,NURSE - BAND 3 - AGENCY,East Planned Care - Blaby/Lutterworth,HCL NURSING,MAN28843,585.36
Department of Health,Leicestershire Partnership NHS Trust,27/11/18,NURSE - BAND 5 - AGENCY,"East Planned Care - Melton,Syston,Rutland",HCL NURSING,MAN28843,958.10
Department of Health,Leicestershire Partnership NHS Trust,27/11/18,NURSE - BAND 5 - AGENCY,"East Planned Care - Oadby,Wigston & Harborough",HCL NURSING,MAN28843,804.14
Department of Health,Leicestershire Partnership NHS Trust,27/11/18,NURSE - BAND 5 - AGENCY,Evening Service,HCL NURSING,MAN28843,1733.79
Department of Health,Leicestershire Partnership NHS Trust,27/11/18,NURSE - BAND 5 - AGENCY,Fielding Palmer Nursing,HCL NURSING,MAN28843,1698.18
Department of Health,Leicestershire Partnership NHS Trust,27/11/18,NURSE - BAND 2 - AGENCY,Gwendolen Ward,HCL NURSING,MAN28843,308.53
Department of Health,Leicestershire Partnership NHS Trust,27/11/18,NURSE - BAND 2 - AGENCY,H&B Comm Hosp East Ward,HCL NURSING,MAN28843,576.41
Department of Health,Leicestershire Partnership NHS Trust,27/11/18,NURSE - BAND 5 - AGENCY,H&B Comm Hosp East Ward,HCL NURSING,MAN28843,172.94
Department of Health,Leicestershire Partnership NHS Trust,27/11/18,NURSE - BAND 2 - AGENCY,H&B Comm Hosp North Ward,HCL NURSING,MAN28843,531.76
Department of Health,Leicestershire Partnership NHS Trust,27/11/18,NURSE - BAND 5 - AGENCY,H&B Comm Hosp North Ward,HCL NURSING,MAN28843,772.14
Department of Health,Leicestershire Partnership NHS Trust,27/11/18,NURSE - BAND 2 - AGENCY,Kirby Ward,HCL NURSING,MAN28843,258.82
Department of Health,Leicestershire Partnership NHS Trust,27/11/18,NURSE - BAND 5 - AGENCY,Kirby Ward,HCL NURSING,MAN28843,605.16
Department of Health,Leicestershire Partnership NHS Trust,27/11/18,NURSE - BAND 2 - AGENCY,Lough Swithland Ward,HCL NURSING,MAN28843,734.11
Department of Health,Leicestershire Partnership NHS Trust,27/11/18,NURSE - BAND 5 - AGENCY,Lough Swithland Ward,HCL NURSING,MAN28843,495.90
Department of Health,Leicestershire Partnership NHS Trust,27/11/18,NURSE - BAND 5 - AGENCY,North East ICS,HCL NURSING,MAN28843,1147.06
Department of Health,Leicestershire Partnership NHS Trust,27/11/18,NURSE - BAND 5 - AGENCY,North West ICS,HCL NURSING,MAN28843,345.88
Department of Health,Leicestershire Partnership NHS Trust,27/11/18,NURSE - BAND 2 - AGENCY,Rutland Ward Nursing,HCL NURSING,MAN28843,1006.77
Department of Health,Leicestershire Partnership NHS Trust,27/11/18,NURSE - BAND 5 - AGENCY,South East ICS,HCL NURSING,MAN28843,4023.15
Department of Health,Leicestershire Partnership NHS Trust,27/11/18,NURSE - BAND 5 - AGENCY,St Lukes Stroke Ward,HCL NURSING,MAN28843,991.00
Department of Health,Leicestershire Partnership NHS Trust,27/11/18,NURSE - BAND 5 - AGENCY,St Lukes Ward 3,HCL NURSING,MAN28843,3094.22
Department of Health,Leicestershire Partnership NHS Trust,27/11/18,NURSE - BAND 2 - AGENCY,Welford Ward,HCL NURSING,MAN28843,543.14
Department of Health,Leicestershire Partnership NHS Trust,27/11/18,NURSE - BAND 3 - AGENCY,West Planned Care  - Charnwood Hub,HCL NURSING,MAN28843,328.91
Department of Health,Leicestershire Partnership NHS Trust,27/11/18,NURSE - BAND 5 - AGENCY,West Planned Care  - Charnwood Hub,HCL NURSING,MAN28843,3323.45
Department of Health,Leicestershire Partnership NHS Trust,28/11/18,Landline Telephone Rental / Calls,"Beaumont Leys Health Centre (P94, LPT)",VIRGIN MEDIA BUSINESS,853083001/004/1118,398.18
Department of Health,Leicestershire Partnership NHS Trust,28/11/18,Landline Telephone Rental / Calls,Belgrave Health Centre (CHP),VIRGIN MEDIA BUSINESS,853083001/004/1118,418.26
Department of Health,Leicestershire Partnership NHS Trust,28/11/18,Landline Telephone Rental / Calls,"Bennion Centre (including Forest Grange Day Unit) (P8, LPT)",VIRGIN MEDIA BUSINESS,853083001/004/1118,7.74
Department of Health,Leicestershire Partnership NHS Trust,28/11/18,Landline Telephone Rental / Calls,"Bradgate Unit (including Glenvale day Unit) (P7, LPT)",VIRGIN MEDIA BUSINESS,853083001/004/1118,7918.78
Department of Health,Leicestershire Partnership NHS Trust,28/11/18,Landline Telephone Rental / Calls,Braunstone Health and Social Care Centre (Part) (PROPCO),VIRGIN MEDIA BUSINESS,853083001/004/1118,1763.38
Department of Health,Leicestershire Partnership NHS Trust,28/11/18,Landline Telephone Rental / Calls,Bridge Park Plaza - First Floor (LPT),VIRGIN MEDIA BUSINESS,853083001/004/1118,4436.27
Department of Health,Leicestershire Partnership NHS Trust,28/11/18,Landline Telephone Rental / Calls,"Coalville Community Hospital (P138, LPT)",VIRGIN MEDIA BUSINESS,853083001/004/1118,1367.52
Department of Health,Leicestershire Partnership NHS Trust,28/11/18,Landline Telephone Rental / Calls,"Coalville Health Centre (P121, LPT)",VIRGIN MEDIA BUSINESS,853083001/004/1118,377.03
Department of Health,Leicestershire Partnership NHS Trust,28/11/18,Landline Telephone Rental / Calls,County Hall,VIRGIN MEDIA BUSINESS,853083001/004/1118,1526.08
Department of Health,Leicestershire Partnership NHS Trust,28/11/18,Landline Telephone Rental / Calls,Estates & Facilities Central,VIRGIN MEDIA BUSINESS,853083001/004/1118,4213.34
Department of Health,Leicestershire Partnership NHS Trust,28/11/18,Landline Telephone Rental / Calls,"Evington Centre (P6, LPT)",VIRGIN MEDIA BUSINESS,853083001/004/1118,1623.17
Department of Health,Leicestershire Partnership NHS Trust,28/11/18,Landline Telephone Rental / Calls,HIS,VIRGIN MEDIA BUSINESS,853083001/004/1118,2839.20
Department of Health,Leicestershire Partnership NHS Trust,28/11/18,Landline Telephone Rental / Calls,"Hawthorne Centre - Coalville (P14, LPT)",VIRGIN MEDIA BUSINESS,853083001/004/1118,516.92
Department of Health,Leicestershire Partnership NHS Trust,28/11/18,Landline Telephone Rental / Calls,Hinckley & District Hospital (PROPCO),VIRGIN MEDIA BUSINESS,853083001/004/1118,1414.02
Department of Health,Leicestershire Partnership NHS Trust,28/11/18,Landline Telephone Rental / Calls,"Hinckley and Bosworth Community Hospital (Sunnyside) (P133, LPT)",VIRGIN MEDIA BUSINESS,853083001/004/1118,1092.81
Department of Health,Leicestershire Partnership NHS Trust,28/11/18,Landline Telephone Rental / Calls,Hood Park Leisure Centre Clinic,VIRGIN MEDIA BUSINESS,853083001/004/1118,67.43
Department of Health,Leicestershire Partnership NHS Trust,28/11/18,Landline Telephone Rental / Calls,"Hynca Lodge (P33, LPT)",VIRGIN MEDIA BUSINESS,853083001/004/1118,370.06
Department of Health,Leicestershire Partnership NHS Trust,28/11/18,Landline Telephone Rental / Calls,"Legion House, Ashby",VIRGIN MEDIA BUSINESS,853083001/004/1118,57.59
Department of Health,Leicestershire Partnership NHS Trust,28/11/18,Landline Telephone Rental / Calls,Loughborough Health Centre (PROPCO),VIRGIN MEDIA BUSINESS,853083001/004/1118,8.81
Department of Health,Leicestershire Partnership NHS Trust,28/11/18,Landline Telephone Rental / Calls,"Loughborough Hospital (P136, LPT)",VIRGIN MEDIA BUSINESS,853083001/004/1118,4545.12
Department of Health,Leicestershire Partnership NHS Trust,28/11/18,Landline Telephone Rental / Calls,Mawson House (LPT),VIRGIN MEDIA BUSINESS,853083001/004/1118,489.36
Department of Health,Leicestershire Partnership NHS Trust,28/11/18,Landline Telephone Rental / Calls,Melbourne Centre (Pt Grnd flr) (PROPCO),VIRGIN MEDIA BUSINESS,853083001/004/1118,6.45
Department of Health,Leicestershire Partnership NHS Trust,28/11/18,Landline Telephone Rental / Calls,Melton Mowbray Hospital (previously St. Mary's) (PROPCO),VIRGIN MEDIA BUSINESS,853083001/004/1118,1757.57
Department of Health,Leicestershire Partnership NHS Trust,28/11/18,Landline Telephone Rental / Calls,Merlyn Vaz Centre (CHP),VIRGIN MEDIA BUSINESS,853083001/004/1118,2117.02
Department of Health,Leicestershire Partnership NHS Trust,28/11/18,Landline Telephone Rental / Calls,"Mett Centre (P49, LPT)",VIRGIN MEDIA BUSINESS,853083001/004/1118,85.52
Department of Health,Leicestershire Partnership NHS Trust,28/11/18,Landline Telephone Rental / Calls,NSPCC Training Cente,VIRGIN MEDIA BUSINESS,853083001/004/1118,181.18
Department of Health,Leicestershire Partnership NHS Trust,28/11/18,Landline Telephone Rental / Calls,New Parks Health Centre (PROPCO),VIRGIN MEDIA BUSINESS,853083001/004/1118,2160.70
Department of Health,Leicestershire Partnership NHS Trust,28/11/18,Landline Telephone Rental / Calls,"OSL House (P54, LPT)",VIRGIN MEDIA BUSINESS,853083001/004/1118,1539.40
Department of Health,Leicestershire Partnership NHS Trust,28/11/18,Landline Telephone Rental / Calls,"Orchard Resource Centre (P15, LPT)",VIRGIN MEDIA BUSINESS,853083001/004/1118,535.68
Department of Health,Leicestershire Partnership NHS Trust,28/11/18,Landline Telephone Rental / Calls,Pasley Road Health Centre (PROPCO),VIRGIN MEDIA BUSINESS,853083001/004/1118,250.60
Department of Health,Leicestershire Partnership NHS Trust,28/11/18,Landline Telephone Rental / Calls,"Prince Philip House (P96, LPT)",VIRGIN MEDIA BUSINESS,853083001/004/1118,1706.00
Department of Health,Leicestershire Partnership NHS Trust,28/11/18,Landline Telephone Rental / Calls,Rushey Mead Health Centre (PROPCO),VIRGIN MEDIA BUSINESS,853083001/004/1118,237.49
Department of Health,Leicestershire Partnership NHS Trust,28/11/18,Landline Telephone Rental / Calls,"Shepshed Health Centre (P123, LPT)",VIRGIN MEDIA BUSINESS,853083001/004/1118,-29.53
Department of Health,Leicestershire Partnership NHS Trust,28/11/18,Landline Telephone Rental / Calls,"Springfield Road Health Centre (P92, LPT)",VIRGIN MEDIA BUSINESS,853083001/004/1118,381.14
Department of Health,Leicestershire Partnership NHS Trust,28/11/18,Landline Telephone Rental / Calls,St Johns House (1st Floor) (PROPCO),VIRGIN MEDIA BUSINESS,853083001/004/1118,1523.46
Department of Health,Leicestershire Partnership NHS Trust,28/11/18,Landline Telephone Rental / Calls,St Peters Primary Care Centre (CHP),VIRGIN MEDIA BUSINESS,853083001/004/1118,2807.12
Department of Health,Leicestershire Partnership NHS Trust,28/11/18,Landline Telephone Rental / Calls,"Stewart House (P61, LPT)",VIRGIN MEDIA BUSINESS,853083001/004/1118,7.74
Department of Health,Leicestershire Partnership NHS Trust,28/11/18,Landline Telephone Rental / Calls,"Swithland House - London Road 352 (P44, LPT)",VIRGIN MEDIA BUSINESS,853083001/004/1118,362.34
Department of Health,Leicestershire Partnership NHS Trust,28/11/18,Landline Telephone Rental / Calls,"The Cedars (P19, LPT)",VIRGIN MEDIA BUSINESS,853083001/004/1118,623.24
Department of Health,Leicestershire Partnership NHS Trust,28/11/18,Landline Telephone Rental / Calls,"The Willows - Cordelia Close (P22, LPT)",VIRGIN MEDIA BUSINESS,853083001/004/1118,456.15
Department of Health,Leicestershire Partnership NHS Trust,28/11/18,Landline Telephone Rental / Calls,Uppingham Road Health Centre (PROPCO),VIRGIN MEDIA BUSINESS,853083001/004/1118,248.19
Department of Health,Leicestershire Partnership NHS Trust,28/11/18,Landline Telephone Rental / Calls,"Valentine Centre (P3, LPT)",VIRGIN MEDIA BUSINESS,853083001/004/1118,1763.68
Department of Health,Leicestershire Partnership NHS Trust,28/11/18,Landline Telephone Rental / Calls,Warren Park Way 25 (PROPCO),VIRGIN MEDIA BUSINESS,853083001/004/1118,955.99
Department of Health,Leicestershire Partnership NHS Trust,28/11/18,Landline Telephone Rental / Calls,"Westcotes Group -Westcotes House (P78, LPT)",VIRGIN MEDIA BUSINESS,853083001/004/1118,1415.83
Department of Health,Leicestershire Partnership NHS Trust,28/11/18,Landline Telephone Rental / Calls,Westcotes Health Centre (CHP),VIRGIN MEDIA BUSINESS,853083001/004/1118,783.80
Department of Health,Leicestershire Partnership NHS Trust,28/11/18,Landline Telephone Rental / Calls,"Winstanley Drive Health Centre (P8, LPT)",VIRGIN MEDIA BUSINESS,853083001/004/1118,443.87
Department of Health,Leicestershire Partnership NHS Trust,28/11/18,Rent,"St Peters Health Center (Part 1st and 2nd floors) (P66, LPT)",LEICESTER LIFT CO,LEP1/S0224,26127.54
Department of Health,Leicestershire Partnership NHS Trust,28/11/18,Drugs,Adult City Drugs,JANSSEN-CILAG LTD,930462181,10252.26
Department of Health,Leicestershire Partnership NHS Trust,28/11/18,Drugs,Adult County Drugs,JANSSEN-CILAG LTD,930462181,15378.39
